bitfinex-derivatives/quotes_BTCF0:USTF0_20250919
["timestamp","ask_amount","ask_price","bid_price","bid_amount"]
[1758293992433,2.02967762,115960.0,115950.0,0.37815126]
[1758293992829,1.14251762,115960.0,115950.0,0.04059]
[1758293993036,2.02811762,115960.0,115950.0,0.37815126]
[1758293993242,1.14251762,115960.0,115950.0,0.37815126]
[1758293993432,1.14251762,115960.0,115950.0,0.04059]
[1758293993632,2.02799762,115960.0,115950.0,0.37815126]
[1758293994434,1.14251762,115960.0,115950.0,0.37815126]
[1758293994635,2.02723762,115960.0,115950.0,0.37815126]
[1758293995034,0.4673951,115960.0,115950.0,0.62815126]
[1758293995238,0.80495636,115960.0,115950.0,0.62815126]
[1758293995438,1.68891636,115960.0,115950.0,0.71435386]
[1758293995839,0.9905551,115960.0,115950.0,0.71435386]
[1758293996034,0.44415636,115960.0,115950.0,0.71435386]
[1758293996237,1.32783636,115960.0,115950.0,0.71435386]
[1758293996541,0.9897551,115960.0,115950.0,0.3767926]
[1758293996743,1.32731636,115960.0,115950.0,1.07515386]
[1758293997740,0.9897551,115960.0,115950.0,1.07515386]
[1758293998444,1.32731636,115960.0,115950.0,1.07515386]
[1758293999947,0.9897551,115960.0,115950.0,1.07515386]
[1758294000247,1.32731636,115960.0,115950.0,1.07515386]
[1758294000849,0.9897551,115960.0,115950.0,1.07515386]
[1758294001047,0.9897551,115960.0,115950.0,0.65139]
[1758294001048,1.32731636,115960.0,115950.0,0.65139]
[1758294001438,1.32731636,115960.0,115950.0,0.98895126]
[1758294001645,1.91487762,115960.0,115950.0,0.004]
[1758294002050,2.27567762,115960.0,115950.0,0.004]
[1758294002249,2.61323888,115960.0,115950.0,0.004]
[1758294002443,2.27567762,115960.0,115950.0,0.004]
[1758294002645,2.61323888,115960.0,115950.0,0.004]
[1758294002950,2.61323888,115960.0,115950.0,1e-07]
[1758294003645,2.61323888,115960.0,115920.0,0.0001]
[1758294003646,0.0982374,115930.0,115920.0,0.0001]
[1758294003842,0.0936247,115920.0,115910.0,0.01376]
[1758294004039,0.0936322,115910.0,115890.0,0.97705184]
[1758294004243,0.0936396,115900.0,115890.0,0.88954762]
[1758294004452,1.30933986,115900.0,115890.0,0.55184736]
[1758294004648,0.43133986,115900.0,115890.0,0.19104736]
[1758294004841,0.9711596,115900.0,115890.0,0.03628]
[1758294005044,1.30885986,115900.0,115890.0,0.03628]
[1758294005244,0.0936396,115900.0,115890.0,0.03628]
[1758294005444,0.0936396,115900.0,115890.0,1.08685205]
[1758294005645,0.0936359,115910.0,115900.0,0.03628]
[1758294005848,0.9708759,115910.0,115900.0,0.44189461]
[1758294006053,0.9708759,115910.0,115900.0,0.37398026]
[1758294006054,0.0976359,115910.0,115900.0,0.37398026]
[1758294006353,0.9747559,115910.0,115900.0,0.39708]
[1758294006940,0.0936359,115910.0,115900.0,0.37398026]
[1758294007147,0.0936359,115910.0,115900.0,0.7333196]
[1758294007342,0.0936293,115920.0,115910.0,0.1225117]
[1758294007542,0.0936293,115920.0,115910.0,0.82101196]
[1758294007751,0.9695893,115920.0,115910.0,0.82101196]
[1758294008555,0.0862196,115930.0,115920.0,0.0999847]
[1758294008747,0.9622196,115930.0,115920.0,1.15870522]
[1758294008947,0.9622196,115930.0,115920.0,1.07100496]
[1758294009148,0.9622196,115930.0,115920.0,0.7333047]
[1758294009350,0.9696196,115930.0,115920.0,0.80312483]
[1758294009554,0.9696196,115930.0,115920.0,1.14082509]
[1758294009757,0.9696196,115930.0,115920.0,0.69380039]
[1758294010550,0.9696196,115930.0,115920.0,1.05460039]
[1758294010752,0.9736196,115930.0,115920.0,1.05760039]
[1758294010949,0.0976196,115930.0,115920.0,1.14382509]
[1758294011154,0.9797796,115930.0,115920.0,1.14382509]
[1758294011354,0.005,115930.0,115920.0,1.48252535]
[1758294011751,0.9752867,115950.0,115940.0,0.1224899]
[1758294012054,0.9752867,115950.0,115940.0,0.37398026]
[1758294012259,0.9752867,115950.0,115940.0,0.46019016]
[1758294013057,0.9762867,115950.0,115940.0,0.46119016]
[1758294013255,0.9762867,115950.0,115940.0,0.82199016]
[1758294013555,0.9762867,115950.0,115940.0,0.46119016]
[1758294013756,0.9822867,115950.0,115940.0,0.46519016]
[1758294014258,0.9822867,115950.0,115940.0,0.39516358]
[1758294014459,0.9822867,115950.0,115940.0,0.48137358]
[1758294014659,0.9822867,115950.0,115940.0,0.84217358]
[1758294014861,0.9822867,115950.0,115940.0,0.48137358]
[1758294015064,0.89608,115950.0,115940.0,0.84217358]
[1758294015360,0.9822825,115950.0,115940.0,0.84217358]
[1758294015954,0.89608,115950.0,115940.0,0.84217358]
[1758294016156,0.9822825,115950.0,115940.0,0.39516358]
[1758294016553,1.56998276,115950.0,115940.0,0.05746332]
[1758294016753,1.93078276,115950.0,115940.0,0.01876]
[1758294016958,0.0936174,115930.0,115920.0,0.06982013]
[1758294017155,0.0936323,115910.0,115900.0,0.73478026]
[1758294017362,0.9709923,115910.0,115900.0,0.73478026]
[1758294017861,0.9709923,115910.0,115900.0,0.39708]
[1758294018062,0.9709923,115910.0,115900.0,0.41299539]
[1758294018264,1.3317923,115910.0,115900.0,0.03628]
[1758294018463,1.3327923,115910.0,115900.0,0.05551722]
[1758294018860,0.9719923,115910.0,115900.0,0.05551722]
[1758294019060,0.9759923,115910.0,115900.0,0.06551722]
[1758294019262,0.9759923,115910.0,115900.0,0.1355197]
[1758294019458,0.9759923,115910.0,115900.0,0.1182498]
[1758294019861,0.9759923,115910.0,115900.0,0.2044895]
[1758294020168,0.9759923,115910.0,115900.0,0.1341858]
[1758294020563,0.9759923,115910.0,115900.0,0.1182498]
[1758294020760,1.2259923,115910.0,115900.0,0.1182498]
[1758294021360,1.2259923,115910.0,115900.0,0.0957298]
[1758294021562,1.5867923,115910.0,115900.0,0.0957298]
[1758294021854,1.5867923,115910.0,115900.0,0.0819698]
[1758294022058,2.0106912,115910.0,115900.0,0.013]
[1758294023263,1.5899723,115910.0,115900.0,0.013]
[1758294023655,1.1333312,115910.0,115900.0,0.009]
[1758294023861,2.0092112,115910.0,115900.0,0.009]
[1758294024063,1.5853123,115910.0,115900.0,0.009]
[1758294024466,2.0045912,115910.0,115900.0,0.009]
[1758294024665,1.1287112,115910.0,115900.0,0.009]
[1758294024864,0.7094323,115910.0,115900.0,0.009]
[1758294025169,2.0046312,115910.0,115900.0,0.009]
[1758294025558,1.7536312,115910.0,115900.0,0.006]
[1758294025758,0.8777112,115910.0,115900.0,0.006]
[1758294025973,0.4584323,115910.0,115900.0,0.006]
[1758294026275,1.3353923,115910.0,115900.0,0.006]
[1758294026678,0.9745923,115910.0,115900.0,0.04085]
[1758294026871,1.3353923,115910.0,115900.0,0.04085]
[1758294027379,0.0986323,115910.0,115900.0,0.04085]
[1758294027866,1.3353923,115910.0,115900.0,0.04085]
[1758294028064,0.4594323,115910.0,115900.0,0.04085]
[1758294028266,0.9745923,115910.0,115900.0,0.04085]
[1758294028478,1.3353923,115910.0,115900.0,0.04085]
[1758294028678,0.9746323,115910.0,115900.0,0.04085]
[1758294030101,0.0986323,115910.0,115900.0,0.04085]
[1758294030288,0.9746323,115910.0,115900.0,0.04085]
[1758294031092,0.9746323,115910.0,115900.0,0.7378898]
[1758294031293,0.9746323,115910.0,115900.0,1.1571687]
[1758294031495,0.9745923,115910.0,115900.0,1.1571687]
[1758294032196,0.9745923,115910.0,115900.0,0.65165]
[1758294032399,0.9745923,115910.0,115900.0,0.7378897]
[1758294032792,0.9745923,115910.0,115900.0,1.1571686]
[1758294032991,0.9745923,115910.0,115900.0,0.7378897]
[1758294033192,0.9745923,115910.0,115900.0,1.1571686]
[1758294033494,0.9745923,115910.0,115900.0,0.7378897]
[1758294034600,0.9745923,115910.0,115900.0,0.65165]
[1758294035298,1.3353923,115910.0,115900.0,0.29085]
[1758294035698,1.3353923,115910.0,115900.0,0.31091834]
[1758294037893,1.67312595,115910.0,115900.0,0.31091834]
[1758294038898,1.31232595,115910.0,115900.0,0.31091834]
[1758294039299,0.9745923,115910.0,115900.0,0.06091834]
[1758294039496,0.9745923,115910.0,115900.0,0.02606834]
[1758294039497,1.67312595,115910.0,115900.0,0.02606834]
[1758294040398,1.67312595,115910.0,115900.0,0.006]
[1758294041889,1.92312595,115910.0,115900.0,0.006]
[1758294043503,1.92312595,115910.0,115900.0,0.04085]
[1758294043504,0.4594323,115910.0,115900.0,0.04085]
[1758294043699,1.3350323,115910.0,115900.0,0.37858365]
[1758294043900,0.9742323,115910.0,115900.0,0.37858365]
[1758294044291,0.9742323,115910.0,115900.0,0.04085]
[1758294044500,1.3350323,115910.0,115900.0,0.04085]
[1758294045003,0.9742323,115910.0,115900.0,0.04085]
[1758294045198,0.9742323,115910.0,115900.0,0.1270898]
[1758294045399,0.9742323,115910.0,115900.0,0.04085]
[1758294045600,0.9742323,115910.0,115900.0,0.03485]
[1758294045806,0.9742323,115910.0,115900.0,0.03985]
[1758294046001,0.9742323,115910.0,115900.0,0.1260898]
[1758294046304,1.3350323,115910.0,115900.0,0.03985]
[1758294049293,1.67276595,115910.0,115900.0,0.03985]
[1758294049503,1.3350323,115910.0,115900.0,0.03985]
[1758294049805,1.67276595,115910.0,115900.0,0.03985]
[1758294050003,1.67276595,115910.0,115900.0,0.01794]
[1758294051108,1.3350323,115910.0,115900.0,0.01794]
[1758294051606,1.67276595,115910.0,115900.0,0.01794]
[1758294051804,0.0936472,115890.0,115880.0,0.02962704]
[1758294052108,1.30670085,115890.0,115880.0,0.05153704]
[1758294052297,0.9689672,115890.0,115880.0,0.05153704]
[1758294052805,0.9689672,115890.0,115880.0,0.12142268]
[1758294053006,0.9739672,115890.0,115880.0,0.05653704]
[1758294053208,0.9749672,115890.0,115880.0,0.39527069]
[1758294053408,0.9739672,115890.0,115880.0,0.39427069]
[1758294053612,0.9739672,115890.0,115880.0,0.48052539]
[1758294054212,0.9738472,115890.0,115880.0,0.84132539]
[1758294054510,0.9738072,115890.0,115880.0,0.84132539]
[1758294055815,0.9738072,115890.0,115880.0,1.09132539]
[1758294056502,0.9662873,115890.0,115880.0,1.09132539]
[1758294058408,0.9662873,115890.0,115880.0,1.16138343]
[1758294059613,0.9736873,115890.0,115880.0,1.16138343]
[1758294059806,0.9736873,115890.0,115880.0,0.82364978]
[1758294060110,0.9736873,115890.0,115880.0,1.16138343]
[1758294061614,0.9734871,115890.0,115880.0,1.16138343]
[1758294062314,0.9660871,115890.0,115880.0,1.16138343]
[1758294063214,0.005,115890.0,115880.0,1.16138343]
[1758294063416,0.87972,115890.0,115880.0,1.16138343]
[1758294063618,0.005,115890.0,115880.0,1.16138343]
[1758294063815,0.0936346,115910.0,115900.0,0.03615]
[1758294064012,0.9681946,115910.0,115900.0,1.15837232]
[1758294064202,0.9681946,115910.0,115900.0,0.4831898]
[1758294064408,0.9681946,115910.0,115900.0,1.15837232]
[1758294065607,0.9721946,115910.0,115900.0,1.16137232]
[1758294066422,0.9731946,115910.0,115900.0,1.16137232]
[1758294067220,0.9731924,115910.0,115900.0,1.16137232]
[1758294068716,0.87956,115910.0,115900.0,1.16137232]
[1758294069217,0.9657923,115910.0,115900.0,1.16137232]
[1758294070022,0.9731923,115910.0,115900.0,0.4861898]
[1758294070220,0.9731923,115910.0,115900.0,1.16137232]
[1758294071014,1.31078356,115910.0,115900.0,1.16137232]
[1758294071226,0.9731923,115910.0,115900.0,1.16137232]
[1758294071721,0.9731923,115910.0,115900.0,0.4861898]
[1758294071914,0.9731923,115910.0,115900.0,0.71433252]
[1758294072121,1.56078356,115910.0,115900.0,0.03915]
[1758294072429,1.56078356,115910.0,115900.0,0.46298106]
[1758294073020,1.56078356,115910.0,115900.0,0.37674126]
[1758294073421,0.3486323,115910.0,115900.0,0.37674126]
[1758294073621,1.56006356,115910.0,115900.0,0.37674126]
[1758294075425,0.68622356,115910.0,115900.0,0.37674126]
[1758294075624,1.04702356,115910.0,115900.0,0.37674126]
[1758294075820,0.7094323,115910.0,115900.0,0.37674126]
[1758294076031,1.2222323,115910.0,115900.0,0.80057222]
[1758294076728,1.2222323,115910.0,115900.0,0.71433252]
[1758294076930,2.26283482,115910.0,115900.0,0.003]
[1758294079821,2.26267482,115910.0,115900.0,0.003]
[1758294080928,1.38923482,115910.0,115900.0,0.003]
[1758294081128,2.26255482,115910.0,115900.0,0.003]
[1758294081321,1.38923482,115910.0,115900.0,0.003]
[1758294081526,2.26243482,115910.0,115900.0,0.003]
[1758294082539,2.60002608,115910.0,115900.0,1e-07]
[1758294082745,4.07979482,115910.0,115900.0,1e-07]
[1758294082932,4.07967482,115910.0,115900.0,1e-07]
[1758294084239,3.20659482,115910.0,115900.0,1e-07]
[1758294084939,4.07955482,115910.0,115900.0,1e-07]
[1758294085731,2.61900356,115910.0,115900.0,1e-07]
[1758294085933,3.49192356,115910.0,115900.0,1e-07]
[1758294086332,3.82951482,115910.0,115900.0,1e-07]
[1758294087036,2.95659482,115910.0,115900.0,1e-07]
[1758294087242,2.61900356,115910.0,115900.0,1e-07]
[1758294087434,3.49184356,115910.0,115900.0,1e-07]
[1758294087634,3.82943482,115910.0,115900.0,1e-07]
[1758294089137,2.95659482,115910.0,115900.0,1e-07]
[1758294089342,3.82931482,115910.0,115900.0,1e-07]
[1758294089948,2.95659482,115910.0,115900.0,1e-07]
[1758294090449,3.82923482,115910.0,115900.0,1e-07]
[1758294094750,3.49136356,115910.0,115900.0,1e-07]
[1758294095347,2.2767923,115910.0,115900.0,0.0368701]
[1758294095548,2.61438356,115910.0,115900.0,0.0368701]
[1758294095748,3.48666356,115910.0,115900.0,0.0368701]
[1758294096859,3.48666356,115910.0,115900.0,0.0136901]
[1758294097759,3.48666356,115910.0,115900.0,0.1231099]
[1758294097957,3.48666356,115910.0,115900.0,0.0368701]
[1758294098954,3.1490723,115910.0,115900.0,0.0368701]
[1758294099153,3.48666356,115910.0,115900.0,0.0368701]
[1758294099856,3.73802252,115910.0,115900.0,1e-07]
[1758294101759,2.52815126,115910.0,115900.0,0.0231801]
[1758294101961,2.52815126,115910.0,115900.0,0.0368701]
[1758294102159,3.39991126,115910.0,115900.0,0.0368701]
[1758294102561,1.58255126,115910.0,115900.0,1e-07]
[1758294103056,1.24492,115910.0,115900.0,0.0368701]
[1758294103368,1.58251126,115910.0,115900.0,0.0368701]
[1758294104660,0.71079126,115910.0,115900.0,0.0368701]
[1758294104862,1.24472,115910.0,115900.0,0.0368701]
[1758294105069,1.58231126,115910.0,115900.0,0.0368701]
[1758294105866,1.24472,115910.0,115900.0,0.0368701]
[1758294106066,1.58231126,115910.0,115900.0,0.0368701]
[1758294106662,1.58231126,115910.0,115900.0,0.0136901]
[1758294106968,1.58231126,115910.0,115900.0,1e-07]
[1758294107968,0.71079126,115910.0,115900.0,1e-07]
[1758294108265,1.58207126,115910.0,115900.0,0.0368701]
[1758294108459,0.71079126,115910.0,115900.0,0.0368701]
[1758294108661,0.3732,115910.0,115900.0,0.0368701]
[1758294108871,0.71079126,115910.0,115900.0,0.0368701]
[1758294109265,1.58191126,115910.0,115900.0,0.0368701]
[1758294110068,0.71079126,115910.0,115900.0,0.0368701]
[1758294110270,1.58187126,115910.0,115900.0,0.0368701]
[1758294111270,0.71079126,115910.0,115900.0,0.0368701]
[1758294111767,1.58163126,115910.0,115900.0,0.0368701]
[1758294113677,1.91922252,115910.0,115900.0,1e-07]
[1758294113874,1.58163126,115910.0,115900.0,1e-07]
[1758294114576,1.91922252,115910.0,115900.0,1e-07]
[1758294119580,1.04838252,115910.0,115900.0,1e-07]
[1758294119774,1.91842252,115910.0,115900.0,1e-07]
[1758294121588,0.3732,115910.0,115900.0,1e-07]
[1758294121772,1.58079126,115910.0,115900.0,0.0353001]
[1758294122080,0.71079126,115910.0,115900.0,0.0353001]
[1758294122280,0.3732,115910.0,115900.0,0.96048262]
[1758294122466,0.88216,115910.0,115900.0,0.62289136]
[1758294123072,0.0124,115910.0,115900.0,0.96048262]
[1758294123284,0.88212,115910.0,115900.0,1.32128262]
[1758294123782,0.0124,115910.0,115900.0,1.32128262]
[1758294124284,0.88196,115910.0,115900.0,1.32128262]
[1758294124783,0.88192,115910.0,115900.0,1.34124427]
[1758294125480,0.88192,115910.0,115900.0,0.64285301]
[1758294125874,0.88192,115910.0,115900.0,0.64295799]
[1758294126472,1.24272,115910.0,115900.0,0.64295799]
[1758294126680,1.24272,115910.0,115900.0,0.30526175]
[1758294133393,0.3732,115910.0,115900.0,0.30526175]
[1758294133689,1.24172,115910.0,115900.0,0.30526175]
[1758294135879,1.57941624,115910.0,115900.0,1e-07]
[1758294136583,1.82941624,115910.0,115900.0,1e-07]
[1758294138788,1.82869624,115910.0,115900.0,1e-07]
[1758294139584,0.96089624,115910.0,115900.0,1e-07]
[1758294139785,1.82853624,115910.0,115900.0,0.0353001]
[1758294139988,0.96089624,115910.0,115900.0,0.0353001]
[1758294140177,1.4908,115910.0,115900.0,0.0353001]
[1758294140373,1.82849624,115910.0,115900.0,0.0353001]
[1758294140583,0.96089624,115910.0,115900.0,0.0353001]
[1758294140887,1.57849624,115910.0,115900.0,0.0353001]
[1758294141087,1.57841624,115910.0,115900.0,0.0353001]
[1758294141387,0.3732,115910.0,115900.0,0.0353001]
[1758294141989,1.2406,115910.0,115900.0,0.0353001]
[1758294142986,1.57829624,115910.0,115900.0,0.0353001]
[1758294143787,1.57813624,115910.0,115900.0,0.0353001]
[1758294144487,1.24044,115910.0,115900.0,0.0353001]
[1758294144686,1.57813624,115910.0,115900.0,0.0353001]
[1758294145689,1.24044,115910.0,115900.0,0.0353001]
[1758294145879,1.57813624,115910.0,115900.0,0.0353001]
[1758294146793,1.57813624,115910.0,115900.0,0.0138601]
[1758294147088,1.57813624,115910.0,115900.0,1e-07]
[1758294147387,1.49044,115910.0,115900.0,1e-07]
[1758294147580,1.82813624,115910.0,115900.0,1e-07]
[1758294148981,1.91436794,115910.0,115900.0,1e-07]
[1758294149693,1.3260717,115910.0,115900.0,0.0356501]
[1758294149882,1.57753624,115910.0,115900.0,0.0356501]
[1758294151388,1.57753624,115910.0,115900.0,1e-07]
[1758294154400,1.83215624,115910.0,115900.0,1e-07]
[1758294156898,1.91838754,115910.0,115900.0,1e-07]
[1758294157088,1.05174754,115910.0,115900.0,1e-07]
[1758294157292,1.91722754,115910.0,115900.0,1e-07]
[1758294157689,1.05174754,115910.0,115900.0,1e-07]
[1758294158596,1.91710754,115910.0,115900.0,1e-07]
[1758294158996,1.05174754,115910.0,115900.0,1e-07]
[1758294159193,1.91698754,115910.0,115900.0,1e-07]
[1758294159500,1.66698754,115910.0,115900.0,1e-07]
[1758294161706,0.80174754,115910.0,115900.0,1e-07]
[1758294162203,1.66662754,115910.0,115900.0,1e-07]
[1758294165104,1.3289313,115910.0,115900.0,1e-07]
[1758294165303,1.66630754,115910.0,115900.0,1e-07]
[1758294165603,1.66618754,115910.0,115900.0,1e-07]
[1758294169700,3.48378754,115910.0,115900.0,1e-07]
[1758294169906,0.0936473,115890.0,115870.0,0.0001]
[1758294170105,0.0936621,115870.0,115860.0,0.03565]
[1758294170309,1.28113181,115870.0,115860.0,0.04775483]
[1758294170513,1.28109181,115870.0,115860.0,0.04775483]
[1758294170702,0.94335557,115870.0,115860.0,0.04775483]
[1758294171011,0.07963557,115870.0,115860.0,0.04775483]
[1758294171605,0.94327557,115870.0,115860.0,0.04775483]
[1758294171804,0.07963557,115870.0,115860.0,0.04775483]
[1758294172003,0.94823557,115870.0,115860.0,0.04875483]
[1758294172316,0.08463557,115870.0,115860.0,0.45547919]
[1758294172511,0.94811557,115870.0,115860.0,0.37434624]
[1758294173308,0.94911557,115870.0,115860.0,0.37434624]
[1758294174011,0.94911557,115870.0,115860.0,0.03665]
[1758294174208,0.08563557,115870.0,115860.0,0.37434624]
[1758294174510,0.94891557,115870.0,115860.0,0.46061584]
[1758294174810,0.08563557,115870.0,115860.0,0.46061584]
[1758294175105,0.94879557,115870.0,115860.0,0.47325289]
[1758294175310,0.08563557,115870.0,115860.0,0.47325289]
[1758294175505,0.94879557,115870.0,115860.0,0.13555665]
[1758294175716,0.08563557,115870.0,115860.0,0.47325289]
[1758294175920,0.94875557,115870.0,115860.0,0.47325289]
[1758294176502,0.08563557,115870.0,115860.0,0.47325289]
[1758294176702,0.94859557,115870.0,115860.0,0.47325289]
[1758294177009,0.94859557,115870.0,115860.0,0.45737085]
[1758294177700,0.08563557,115870.0,115860.0,0.54364045]
[1758294177901,0.94859557,115870.0,115860.0,0.54364045]
[1758294178101,0.94859557,115870.0,115860.0,0.20594421]
[1758294178402,0.94859557,115870.0,115860.0,0.54364045]
[1758294178602,0.0936696,115860.0,115850.0,0.00946177]
[1758294178804,0.0936696,115860.0,115850.0,7e-08]
[1758294178805,0.76906208,115860.0,115850.0,7e-08]
[1758294179000,1.01906208,115860.0,115850.0,7e-08]
[1758294179206,0.3436696,115860.0,115850.0,0.03412007]
[1758294179407,0.43136584,115860.0,115850.0,0.10345094]
[1758294179614,0.43136584,115860.0,115850.0,0.03412007]
[1758294179799,0.9562296,115860.0,115850.0,0.03412007]
[1758294180113,0.9562296,115860.0,115850.0,0.12039707]
[1758294180411,1.29492584,115860.0,115850.0,0.12039707]
[1758294181004,1.63262208,115860.0,115850.0,7e-08]
[1758294181214,1.63262208,115860.0,115850.0,0.03412007]
[1758294181514,1.63262208,115860.0,115850.0,7e-08]
[1758294181714,1.63162208,115860.0,115850.0,7e-08]
[1758294181910,1.63662208,115860.0,115850.0,7e-08]
[1758294182616,1.29892584,115860.0,115850.0,0.03412007]
[1758294182907,0.9608296,115860.0,115850.0,0.03412007]
[1758294183103,1.29852584,115860.0,115850.0,0.03412007]
[1758294183504,0.9608296,115860.0,115850.0,0.03412007]
[1758294183708,1.29852584,115860.0,115850.0,0.03412007]
[1758294183911,0.9608296,115860.0,115850.0,0.03412007]
[1758294184102,1.29852584,115860.0,115850.0,0.03412007]
[1758294186807,1.29852584,115860.0,115850.0,0.12039707]
[1758294187015,1.29852584,115860.0,115850.0,0.03412007]
[1758294187320,1.29852584,115860.0,115850.0,0.1024571]
[1758294187511,1.29852584,115860.0,115850.0,0.03412007]
[1758294187912,1.63694724,115860.0,115850.0,0.03412007]
[1758294189915,0.9608296,115860.0,115850.0,0.03412007]
[1758294190116,1.63694724,115860.0,115850.0,0.03412007]
[1758294191117,1.63694724,115860.0,115850.0,0.10470004]
[1758294191316,0.9608296,115860.0,115850.0,0.10470004]
[1758294191517,1.29888842,115860.0,115850.0,0.44275886]
[1758294191714,1.63694724,115860.0,115850.0,0.44275886]
[1758294192110,1.63694724,115860.0,115850.0,0.10470004]
[1758294192717,0.9608296,115860.0,115850.0,0.10470004]
[1758294192918,1.63694724,115860.0,115850.0,0.44275886]
[1758294193315,1.63694724,115860.0,115850.0,0.10470004]
[1758294193511,1.63694724,115860.0,115850.0,0.07058004]
[1758294194419,2.22500606,115860.0,115850.0,7e-08]
[1758294194610,2.22962606,115860.0,115850.0,7e-08]
[1758294195216,1.89156724,115860.0,115850.0,7e-08]
[1758294195720,2.22962606,115860.0,115850.0,7e-08]
[1758294195922,2.22962606,115860.0,115850.0,0.03412007]
[1758294195923,1.63546724,115860.0,115850.0,0.03412007]
[1758294196221,1.63534724,115860.0,115850.0,0.01262007]
[1758294196609,1.63534724,115860.0,115850.0,7e-08]
[1758294197620,1.63534724,115860.0,115850.0,0.01262007]
[1758294197820,1.63534724,115860.0,115850.0,7e-08]
[1758294199124,1.63534724,115860.0,115850.0,0.01262007]
[1758294199528,1.63534724,115860.0,115850.0,7e-08]
[1758294200125,1.97340606,115860.0,115850.0,7e-08]
[1758294200925,1.63534724,115860.0,115850.0,7e-08]
[1758294201225,1.88534724,115860.0,115850.0,7e-08]
[1758294201918,2.22340606,115860.0,115850.0,7e-08]
[1758294203129,1.88534724,115860.0,115850.0,7e-08]
[1758294205320,3.79168606,115860.0,115850.0,7e-08]
[1758294206317,0.0936843,115840.0,115830.0,4e-05]
[1758294206524,1.62924194,115840.0,115830.0,4e-05]
[1758294207028,1.62924194,115840.0,115830.0,0.03397]
[1758294207228,1.62912194,115840.0,115830.0,0.03397]
[1758294207431,0.43174312,115840.0,115830.0,0.62202882]
[1758294207627,1.29106312,115840.0,115830.0,0.62202882]
[1758294208029,0.9529243,115840.0,115830.0,0.62202882]
[1758294208428,1.29098312,115840.0,115830.0,0.62202882]
[1758294208633,1.29598312,115840.0,115830.0,0.62202882]
[1758294209036,1.29698312,115840.0,115830.0,0.62202882]
[1758294209534,1.29702312,115840.0,115830.0,0.62202882]
[1758294210236,1.29702312,115840.0,115830.0,0.28397]
[1758294210431,1.63508194,115840.0,115830.0,0.03397]
[1758294210629,1.63476194,115840.0,115830.0,0.03397]
[1758294210831,0.43774312,115840.0,115830.0,0.37202882]
[1758294211033,1.29666312,115840.0,115830.0,0.37202882]
[1758294211239,1.29666312,115840.0,115830.0,0.03397]
[1758294211433,1.29566312,115840.0,115830.0,0.37202882]
[1758294211630,1.29666312,115840.0,115830.0,0.37202882]
[1758294211935,1.63472194,115840.0,115830.0,0.37202882]
[1758294212140,1.63372194,115840.0,115830.0,0.37202882]
[1758294212332,1.63272194,115840.0,115830.0,0.03397]
[1758294212635,0.9576043,115840.0,115830.0,0.03397]
[1758294212832,1.63372194,115840.0,115830.0,0.03397]
[1758294213338,1.63372194,115840.0,115830.0,0.01273]
[1758294214435,1.63372194,115840.0,115830.0,0.03397]
[1758294216134,1.63372194,115840.0,115830.0,4e-05]
[1758294217028,0.9576043,115840.0,115830.0,0.03397]
[1758294217343,1.63372194,115840.0,115830.0,0.01273]
[1758294217540,0.9576043,115840.0,115830.0,4e-05]
[1758294218040,1.63372194,115840.0,115830.0,4e-05]
[1758294219337,1.97178076,115840.0,115830.0,4e-05]
[1758294219740,1.97178076,115840.0,115820.0,0.57652]
[1758294219741,0.0983118,115830.0,115820.0,0.5097329]
[1758294219942,0.77442944,115830.0,115820.0,0.5097329]
[1758294220343,1.02442944,115830.0,115820.0,0.4580355]
[1758294220539,0.3483118,115830.0,115820.0,0.4580355]
[1758294220738,1.88222944,115830.0,115820.0,0.4580355]
[1758294221340,1.89409465,115830.0,115820.0,0.4580355]
[1758294221547,1.88222944,115830.0,115820.0,0.4580355]
[1758294221848,1.88622944,115830.0,115820.0,0.4580355]
[1758294222044,1.88722944,115830.0,115820.0,0.4580355]
[1758294222244,1.88722944,115830.0,115820.0,0.3999523]
[1758294222447,1.88722944,115830.0,115820.0,0.335064]
[1758294223039,1.02942944,115830.0,115820.0,0.335064]
[1758294223249,1.63694944,115830.0,115820.0,0.335064]
[1758294223843,0.9608318,115830.0,115820.0,0.335064]
[1758294224148,1.63694944,115830.0,115820.0,0.335064]
[1758294224343,1.63694944,115830.0,115820.0,0.2768755]
[1758294224549,1.64852912,115830.0,115820.0,0.2293384]
[1758294224744,1.64852912,115830.0,115820.0,0.1931004]
[1758294224745,1.37906794,115830.0,115820.0,0.1931004]
[1758294224951,0.77942944,115830.0,115820.0,0.1678044]
[1758294225147,1.63678944,115830.0,115820.0,0.0454061]
[1758294225346,1.63678944,115830.0,115820.0,0.0149904]
[1758294225541,0.0937065,115810.0,115800.0,0.03393]
[1758294225750,1.28904532,115810.0,115800.0,0.03393]
[1758294226052,0.0937065,115810.0,115800.0,0.04556535]
[1758294226235,1.28896532,115810.0,115800.0,0.04556535]
[1758294226647,1.28896532,115810.0,115800.0,0.03393]
[1758294227253,1.29396532,115810.0,115790.0,0.09143788]
[1758294227457,1.29396532,115810.0,115790.0,0.11267788]
[1758294227458,0.76983164,115800.0,115790.0,0.11267788]
[1758294227752,0.093714,115800.0,115790.0,0.36267788]
[1758294228051,0.76983164,115800.0,115790.0,0.11267788]
[1758294228347,1.62683164,115800.0,115790.0,0.11267788]
[1758294228849,0.098714,115800.0,115790.0,0.4507367]
[1758294229250,0.90917282,115800.0,115790.0,0.4507367]
[1758294229445,0.91017282,115800.0,115790.0,0.4507367]
[1758294230045,0.43777282,115800.0,115790.0,0.4507367]
[1758294230347,0.956554,115800.0,115790.0,0.7007367]
[1758294230550,1.29461282,115800.0,115790.0,0.7007367]
[1758294231653,0.956554,115800.0,115790.0,0.7007367]
[1758294231853,1.29461282,115800.0,115790.0,0.7007367]
[1758294232040,0.092314,115800.0,115790.0,0.7007367]
[1758294232240,0.092314,115800.0,115790.0,1.12511692]
[1758294232445,0.092314,115800.0,115790.0,0.7870581]
[1758294232653,0.006,115800.0,115790.0,1.12511692]
[1758294233755,0.006,115800.0,115790.0,0.7870581]
[1758294233949,0.43037282,115800.0,115790.0,0.7870582]
[1758294234255,0.092314,115800.0,115790.0,0.7870582]
[1758294234453,0.092314,115800.0,115790.0,0.5370582]
[1758294234755,0.43037282,115800.0,115790.0,0.5370582]
[1758294235447,0.43037282,115800.0,115790.0,0.19899938]
[1758294235648,0.43037282,115800.0,115790.0,0.5370582]
[1758294235842,0.006,115800.0,115790.0,0.5370582]
[1758294236060,0.006,115800.0,115790.0,0.19899938]
[1758294236250,0.006,115800.0,115790.0,0.7870582]
[1758294236458,0.006,115800.0,115790.0,0.44899938]
[1758294236654,0.006,115800.0,115790.0,0.7870582]
[1758294238750,0.006,115800.0,115790.0,1.12511702]
[1758294239745,0.092314,115800.0,115790.0,0.44899938]
[1758294239950,0.092314,115800.0,115790.0,0.7870582]